fUSD/lending_fUSD_20250807
["ID","MTS","AMOUNT","RATE_DAILY","PERIOD"]
[377901916,1754609442686,-1000.0,0.00019178,2]
[377901917,1754609442695,-400.0,0.00019178,2]
[377901918,1754609442704,-400.0,0.00019178,2]
[377901919,1754609442713,-1071.12,0.00019178,2]
[377901920,1754609442723,-400.0,0.00019178,2]
[377901921,1754609442733,-2089.02,0.00019178,2]
[377901922,1754609442743,-414.6,0.00019178,2]
[377901923,1754609442754,-1986.33,0.00019178,2]
[377901924,1754609442763,-875.68,0.00019178,2]
[377901925,1754609442774,-400.0,0.00019178,2]
[377901926,1754609442784,-400.0,0.00019178,2]
[377901927,1754609442794,-400.0,0.00019178,2]
[377901928,1754609442805,-400.0,0.00019178,2]
[377901929,1754609442817,-400.0,0.00019178,2]
[377901930,1754609442828,-772.76,0.00019178,2]
[377901931,1754609442838,-1003.77,0.00019178,2]
[377901932,1754609442848,-1699.95,0.00019178,2]
[377901933,1754609442858,-403.85,0.00019178,2]
[377901934,1754609442867,-907.29,0.00019178,2]
[377901935,1754609442877,-400.0,0.00019178,2]
[377901936,1754609442887,-400.0,0.00019178,2]
[377901937,1754609442896,-400.0,0.00019178,2]
[377901938,1754609442907,-505.45,0.00019178,2]
[377901939,1754609442917,-1392.02,0.00019178,2]
[377901940,1754609442926,-505.45,0.00019178,2]
[377901941,1754609442935,-505.45,0.00019178,2]
[377901942,1754609442945,-536.72,0.00019178,2]
[377901944,1754609442956,-725.52,0.00019178,2]
[377901946,1754609442966,-400.0,0.00019178,2]
[377901949,1754609442975,-400.0,0.00019178,2]
[377901951,1754609442985,-1018.0,0.00019178,2]
[377901953,1754609442994,-400.0,0.00019178,2]
[377901955,1754609443003,-400.0,0.00019178,2]
[377901957,1754609443013,-400.0,0.00019178,2]
[377901958,1754609443022,-400.0,0.00019178,2]
[377901961,1754609443031,-1765.05,0.00019178,2]
[377901963,1754609443040,-467.61498385,0.00019178,2]
[377901964,1754609443049,-400.0,0.00019178,2]
[377901967,1754609443059,-1182.1,0.00019178,2]
[377901969,1754609443068,-1256.04,0.00019178,2]
[377901971,1754609443077,-400.0,0.00019178,2]
[377901973,1754609443086,-400.0,0.00019178,2]
[377901975,1754609443096,-400.0,0.00019178,2]
[377901977,1754609443105,-1101.26,0.00019178,2]
[377901979,1754609443115,-400.0,0.00019178,2]
[377901981,1754609443124,-400.0,0.00019178,2]
[377901983,1754609443133,-180.33661824,0.00019178,2]
[377901984,1754609443142,-1322.84,0.00019178,2]
[377901987,1754609443152,-400.0,0.00019178,2]
[377901988,1754609443161,-400.0,0.00019178,2]
[377901991,1754609443171,-400.0,0.00019178,2]
[377901993,1754609443181,-1175.13,0.00019178,2]
[377901995,1754609443192,-1713.28,0.00019178,2]
[377901997,1754609443201,-1612.48,0.00019178,2]
[377901999,1754609443211,-400.0,0.00019178,2]
[377902001,1754609443220,-400.0,0.00019178,2]
[377902003,1754609443230,-546.29,0.00019178,2]
[377902005,1754609443240,-849.42,0.00019178,2]
[377902007,1754609443249,-1721.52,0.00019178,2]
[377902009,1754609443259,-400.0,0.00019178,2]
[377902011,1754609443269,-1087.65,0.00019178,2]
[377902013,1754609443279,-400.0,0.00019178,2]
[377902015,1754609443288,-1482.54,0.00019178,2]
[377902017,1754609443298,-1691.23,0.00019178,2]
[377902019,1754609443307,-723.8,0.00019178,2]
[377902021,1754609443317,-400.0,0.00019178,2]
[377902023,1754609443326,-1439.92,0.00019178,2]
[377902025,1754609443335,-2511.02,0.00019178,2]
[377902027,1754609443344,-400.0,0.00019178,2]
[377902029,1754609443354,-1115.22,0.00019178,2]
[377902031,1754609443364,-400.0,0.00019178,2]
[377902033,1754609443374,-601.32,0.00019178,2]
[377902035,1754609443384,-400.0,0.00019178,2]
[377902037,1754609443393,-515.01,0.00019178,2]
[377902039,1754609443402,-400.0,0.00019178,2]
[377902041,1754609443412,-400.0,0.00019178,2]
[377902043,1754609443421,-517.71,0.00019178,2]
[377902045,1754609443431,-504.23,0.00019178,2]
[377902047,1754609443442,-3707.72,0.00019178,2]
[377902049,1754609443451,-400.0,0.00019178,2]
[377902051,1754609443461,-1556.23,0.00019178,2]
[377902053,1754609443471,-906.94,0.00019178,2]
[377902055,1754609443480,-400.0,0.00019178,2]
[377902057,1754609443490,-400.0,0.00019178,2]
[377902059,1754609443499,-400.0,0.00019178,2]
[377902061,1754609443508,-400.0,0.00019178,2]
[377902063,1754609443518,-800.75,0.00019178,2]
[377902065,1754609443527,-1124.1,0.00019178,2]
[377902067,1754609443536,-6084.17,0.00019178,2]
[377902069,1754609443546,-1338.15,0.00019178,2]
[377902071,1754609443555,-400.0,0.00019178,2]
[377902073,1754609443565,-400.0,0.00019178,2]
[377902075,1754609443575,-513.08,0.00019178,2]
[377902077,1754609443585,-400.0,0.00019178,2]
[377902079,1754609443597,-400.0,0.00019178,2]
[377902081,1754609443606,-1430.33,0.00019178,2]
[377902082,1754609443616,-400.0,0.00019178,2]
[377902083,1754609443625,-400.0,0.00019178,2]
[377902084,1754609443635,-557.54,0.00019178,2]
[377902085,1754609443644,-1719.08,0.00019178,2]
[377902086,1754609443654,-400.0,0.00019178,2]
[377902087,1754609443664,-400.0,0.00019178,2]
[377902088,1754609443674,-1318.74,0.00019178,2]
[377902089,1754609443684,-400.0,0.00019178,2]
[377902090,1754609443693,-400.0,0.00019178,2]
[377902091,1754609443702,-545.59,0.00019178,2]
[377902092,1754609443711,-1524.41,0.00019178,2]
[377902093,1754609443721,-706.87,0.00019178,2]
[377902094,1754609443730,-909.64,0.00019178,2]
[377902095,1754609443739,-913.16,0.00019178,2]
[377902096,1754609443748,-1914.68,0.00019178,2]
[377902097,1754609443758,-268.718281,0.00019178,2]
[377902098,1754609443767,-268.718281,0.00019178,2]
[377902099,1754609443777,-1142.95,0.00019178,2]
[377902100,1754609443786,-400.0,0.00019178,2]
[377902101,1754609443795,-945.62,0.00019178,2]
[377902102,1754609443804,-367.43798349,0.00019178,2]
[377902103,1754609443813,-669.02,0.00019178,2]
[377902104,1754609443822,-690.99,0.00019178,2]
[377902105,1754609443831,-1766.36,0.00019178,2]
[377902106,1754609443841,-400.0,0.00019178,2]
[377902107,1754609443850,-1454.67,0.00019178,2]
[377902108,1754609443859,-479.12,0.00019178,2]
[377902109,1754609443871,-400.0,0.00019178,2]
[377902110,1754609443882,-655.59,0.00019178,2]
[377902111,1754609443892,-400.0,0.00019178,2]
[377902112,1754609443901,-1745.72,0.00019178,2]
[377902113,1754609443911,-821.65,0.00019178,2]
[377902114,1754609443921,-400.0,0.00019178,2]
[377902115,1754609443931,-1184.39,0.00019178,2]
[377902116,1754609443941,-400.0,0.00019178,2]
[377902117,1754609443950,-1326.82,0.00019178,2]
[377902118,1754609443959,-483.9,0.00019178,2]
[377902119,1754609443969,-2638.97,0.00019178,2]
[377902120,1754609443978,-400.0,0.00019178,2]
[377902121,1754609443987,-1730.04,0.00019178,2]
[377902122,1754609443997,-400.0,0.00019178,2]
[377902123,1754609444100,-169.29599528,0.00019178,2]
[377902124,1754609444110,-400.0,0.00019178,2]
[377902125,1754609444119,-400.0,0.00019178,2]
[377902126,1754609444129,-400.0,0.00019178,2]
[377902127,1754609444138,-635.0,0.00019178,2]
[377902128,1754609444147,-1467.68,0.00019178,2]
[377902129,1754609444158,-400.0,0.00019178,2]
[377902130,1754609444167,-855.39,0.00019178,2]
[377902131,1754609444176,-1396.66,0.00019178,2]
[377902132,1754609444186,-400.0,0.00019178,2]
[377902133,1754609444196,-245.61956291,0.00019178,2]
[377902134,1754609444205,-400.0,0.00019178,2]
[377902135,1754609444214,-1709.34,0.00019178,2]
[377902136,1754609444224,-400.0,0.00019178,2]
[377902137,1754609444233,-400.0,0.00019178,2]
[377902138,1754609444242,-400.0,0.00019178,2]
[377902139,1754609444252,-619.86,0.00019178,2]
[377902140,1754609444261,-400.0,0.00019178,2]
[377902141,1754609444271,-400.0,0.00019178,2]
[377902142,1754609444280,-749.84,0.00019178,2]
[377902143,1754609444290,-1970.53,0.00019178,2]
[377902144,1754609444299,-531.09,0.00019178,2]
[377902145,1754609444308,-827.99,0.00019178,2]
[377902146,1754609444317,-1288.75,0.00019178,2]
[377902147,1754609444326,-167.06944862,0.00019178,2]
[377902148,1754609444338,-1323.31,0.00019178,2]
[377902149,1754609444348,-1318.45,0.00019178,2]
[377902150,1754609444357,-500.0,0.00019178,2]
[377902151,1754609444367,-500.0,0.00019178,2]
[377902152,1754609444377,-500.0,0.00019178,2]
[377902153,1754609444387,-581.21,0.00019178,2]
[377902154,1754609444396,-500.0,0.00019178,2]
[377902155,1754609444406,-173.46066966,0.00019178,2]
[377902156,1754609444415,-1945.19,0.00019178,2]
[377902157,1754609444424,-400.0,0.00019178,2]
[377902158,1754609444433,-912.43,0.00019178,2]
[377902159,1754609444443,-400.0,0.00019178,2]
[377902160,1754609444452,-1045.49,0.00019178,2]
[377902161,1754609444461,-34.92570552,0.00019178,2]
[377902162,1754609445126,-747.87429448,0.00019178,2]
[377902163,1754609445136,-400.0,0.00019178,2]
[377902164,1754609445146,-802.4,0.00019178,2]
[377902165,1754609445156,-400.0,0.00019178,2]
[377902166,1754609445165,-1001.0,0.00019178,2]
[377902167,1754609445176,-1568.29,0.00019178,2]
[377902168,1754609445185,-400.0,0.00019178,2]
[377902169,1754609445194,-686.23,0.00019178,2]
[377902170,1754609445204,-400.0,0.00019178,2]
[377902171,1754609445213,-930.12,0.00019178,2]
[377902172,1754609445223,-400.0,0.00019178,2]
[377902173,1754609445232,-68.48570552,0.00019178,2]
[377902174,1754609445244,-331.09,0.00019178,2]
[377902175,1754609445302,-1443.44429448,0.00019178,2]
[377902176,1754609445313,-884.73,0.00019178,2]
[377902177,1754609445324,-285.48628022,0.00019178,2]
[377902203,1754609446175,-499.55371978,0.00019178,2]
[377902204,1754609446184,-719.86,0.00019178,2]
[377902205,1754609446193,-1698.14,0.00019178,2]
[377902206,1754609446202,-2116.59,0.00019178,2]
[377902207,1754609446212,-400.0,0.00019178,2]
[377902208,1754609446221,-400.0,0.00019178,2]
[377902209,1754609446230,-400.0,0.00019178,2]
[377902210,1754609446239,-689.28,0.00019178,2]
[377902211,1754609446247,-595.2,0.00019178,2]
[377902212,1754609446256,-400.0,0.00019178,2]
[377902213,1754609446265,-441.94,0.00019178,2]
[377902214,1754609446274,-400.0,0.00019178,2]
[377902215,1754609446283,-3048.9,0.00019178,2]
[377902216,1754609446292,-400.0,0.00019178,2]
[377902217,1754609446301,-690.88,0.00019178,2]
[377902218,1754609446310,-405.37628122,0.00019178,2]
[377902219,1754609446361,-421.48223619,0.00019178,2]
[377902220,1754609446379,-606.92148259,0.00019178,2]
[377902221,1754609446388,-400.0,0.00019178,2]
[377902222,1754609446397,-1017.46257994,0.00019178,2]
[377902223,1754609447234,-152.0,0.00018407,2]
[377902224,1754609447244,-448.87162054,0.00019168,2]
[377902226,1754609646438,3359.87710453,0.00030137,120]
[377902229,1754609801608,327.73,0.00013699,2]
[377902230,1754609893985,-300.0,0.00018117,2]
[377902232,1754609955577,511.0,0.00017413,2]
[377902233,1754609968899,-179.57507455,0.00018038,2]
[377902234,1754609968923,-122.18904995,0.00018063,2]
[377902235,1754609972123,-27.81095005,0.00018063,2]
[377902236,1754609972148,-198.52,0.00018078,2]
[377902237,1754609972174,-211.13820549,0.00018117,2]
[377902238,1754609977339,-231.51671996,0.00018117,2]
[377902241,1754610170741,164.96,0.00017942,2]
[377902243,1754610222152,358.05,0.00015068,2]
[377902244,1754610222451,358.05,0.00016661,2]
[377902245,1754610238157,39226.83,0.00017882,2]
[377902246,1754610311633,150.0,0.0001726,2]
[377902247,1754610315320,150.0,0.0001726,2]
[377902248,1754610315990,150.0,0.00017473,2]
[377902249,1754610316036,150.0,0.00017686,2]
[377902250,1754610316079,150.0,0.000179,2]
[377902251,1754610316319,150.0,0.0001726,2]
[377902252,1754610316361,150.0,0.0001774,2]
[377902253,1754610321850,150.0,0.0001726,2]
[377902254,1754610321954,150.0,0.0001726,2]
[377902255,1754610322066,150.0,0.0001726,2]
[377902256,1754610324406,150.0,0.0001726,2]
[377902257,1754610328151,150.0,0.0001726,2]
[377902258,1754610333744,150.0,0.0001726,2]
[377902259,1754610340719,-185.71999051,0.00018021,3]
[377902260,1754610343197,-189.63341843,0.00018021,3]
[377902261,1754610349508,-155.87469046,0.00018021,3]
[377902262,1754610350841,-134.7719006,0.00018021,3]
[377902263,1754610350865,-36.96692464,0.00018045,2]
[377902264,1754610355071,-113.03307536,0.00018045,2]
[377902265,1754610355094,-118.72870206,0.00018069,4]
[377902266,1754610362657,-153.09979508,0.00018069,4]
[377902267,1754610368245,-269.66917798,0.00018069,4]
[377902268,1754610371753,-228.83592759,0.00018069,4]
[377902269,1754610375893,-229.66639729,0.00018069,4]
[377902270,1754610375917,-18.09999583,0.00018079,4]
[377902271,1754610378206,268.48594961,0.0001799,2]
[377902272,1754610378762,-300.0,0.00018079,4]
[377902274,1754610425345,175.81,0.00017845,3]
[377902275,1754610591551,150.0,0.000173,2]
[377902284,1754610631743,-681.90000417,0.00018079,4]
[377902285,1754610631753,-250.0,0.00018079,2]
[377902286,1754610631762,-150.0,0.00018079,2]
[377902287,1754610631773,-150.0,0.00018079,2]
[377902288,1754610631782,-1000.0,0.00018079,4]
[377902289,1754610631792,-150.0,0.00018102,2]
[377902290,1754610631801,-150.0,0.00018113,2]
[377902291,1754610631811,-257.34507455,0.00018117,2]
[377902292,1754610631820,-151.72,0.00018138,2]
[377902293,1754610631830,-150.0,0.00018219,2]
[377902294,1754610631840,-175.0,0.00018225,7]
[377902295,1754610631850,-418.05,0.00018234,2]
[377902296,1754610631859,-358.05,0.00018253,2]
[377902297,1754610631868,-150.0,0.00018326,2]
[377902298,1754610631879,-167.24,0.00018418,2]
[377902299,1754610631888,-150.0,0.0001848,2]
[377902300,1754610631898,-150.0,0.00018539,2]
[377902301,1754610631908,-800.0,0.000186,6]
[377902302,1754610631918,-150.0,0.00018699,2]
[377902303,1754610631929,-1700.0,0.000187,6]
[377902304,1754610631939,-150.0,0.00018752,2]
[377902305,1754610631949,-892.2839738,0.00018794,2]
[377902306,1754610631959,-245.0,0.00018799,2]
[377902307,1754610631971,-300.0,0.00018799,2]
[377902308,1754610631980,-1200.0,0.00018799,2]
[377902309,1754610631991,-2500.0,0.000188,6]
[377902310,1754610632000,-150.0,0.00018862,2]
[377902311,1754610632010,-173.06,0.00018862,2]
[377902312,1754610632021,-173.06,0.00018862,2]
[377902313,1754610632031,-359.44,0.00018862,2]
[377902314,1754610632041,-359.44,0.00018862,2]
[377902315,1754610632051,-173.06,0.00018862,2]
[377902316,1754610632060,-173.06,0.00018862,2]
[377902317,1754610632071,-359.44,0.00018862,2]
[377902318,1754610632081,-173.06,0.00018862,2]
[377902319,1754610632092,-600.0,0.00018868,2]
[377902320,1754610632102,-364.01825378,0.00018868,2]
[377902321,1754610632116,-218.27174622,0.00018868,2]
[377902322,1754610632127,-267.46074303,0.00018887,2]
[377902323,1754610632137,-4496.15507419,0.00018887,2]
[377902324,1754610632147,-416.6349,0.000189,2]
[377902325,1754610632158,-3400.0,0.000189,6]
[377902326,1754610632170,-4662.51281194,0.00018942,2]
[377902327,1754610632181,-150.0,0.00018965,2]
[377902328,1754610632191,-289.20434143,0.00018997,2]
[377902329,1754610632200,-327.445,0.00019032,2]
[377902330,1754610632211,-11901.56535905,0.00019078,2]
[377902331,1754610632221,-162.37178664,0.00019078,2]
[377902332,1754610632230,-5000.0,0.00019078,2]
[377902333,1754610632240,-457.55740054,0.00019086,2]
[377902334,1754610632250,-211.58213282,0.00019086,2]
[377902335,1754610632259,-660.6,0.00019129,2]
[377902336,1754610632269,-160.0,0.00019162,2]
[377902337,1754610632279,-600.0,0.00019162,2]
[377902338,1754610632288,-500.0,0.00019162,2]
[377902339,1754610632298,-393.8,0.00019168,2]
[377902340,1754610632308,-757.03366498,0.00019168,2]
[377902341,1754610632317,-11901.56535901,0.00019169,2]
[377902342,1754610632327,-500.0,0.00019173,2]
[377902344,1754610632336,-500.0,0.00019173,2]
[377902346,1754610632347,-500.0,0.00019173,2]
[377902348,1754610632356,-500.0,0.00019173,2]
[377902351,1754610632366,-500.0,0.00019173,2]
[377902353,1754610632376,-865.0,0.00019177,2]
[377902355,1754610632385,-1027.5704,0.00019177,2]
[377902357,1754610632395,-1000.0,0.00019177,2]
[377902359,1754610632405,-313.68650217,0.00019177,2]
[377902360,1754610632414,-160.64643868,0.00019177,2]
[377902361,1754610632424,-152.34048736,0.00019178,2]
[377902362,1754610632433,-237.17779985,0.00019178,2]
[377902363,1754610632444,-581.09,0.00019178,2]
[377902364,1754610632454,-516.44,0.00019178,2]
[377902365,1754610632464,-400.0,0.00019178,2]
[377902366,1754610632473,-400.0,0.00019178,2]
[377902367,1754610632483,-400.0,0.00019178,2]
[377902368,1754610632493,-785.88,0.00019178,2]
[377902369,1754610632503,-400.0,0.00019178,2]
[377902370,1754610632513,-400.0,0.00019178,2]
[377902371,1754610632523,-479.51,0.00019178,2]
[377902372,1754610632533,-486.65,0.00019178,2]
[377902373,1754610632543,-745.7,0.00019178,2]
[377902374,1754610632552,-400.0,0.00019178,2]
[377902375,1754610632561,-1477.36,0.00019178,2]
[377902376,1754610632572,-625.05,0.00019178,2]
[377902377,1754610632582,-1085.62,0.00019178,2]
[377902378,1754610632593,-400.0,0.00019178,2]
[377902379,1754610632603,-400.0,0.00019178,2]
[377902380,1754610632612,-469.83,0.00019178,2]
[377902381,1754610632623,-400.0,0.00019178,2]
[377902382,1754610632632,-1201.08,0.00019178,2]
[377902383,1754610632642,-400.0,0.00019178,2]
[377902384,1754610632651,-400.0,0.00019178,2]
[377902385,1754610632661,-759.8,0.00019178,2]
[377902386,1754610633047,-400.0,0.00019178,2]
[377902387,1754610633067,-580.91,0.00019178,2]
[377902388,1754610633076,-400.0,0.00019178,2]
[377902389,1754610633086,-400.0,0.00019178,2]
[377902390,1754610633097,-696.79,0.00019178,2]
[377902391,1754610633107,-478.59,0.00019178,2]
[377902392,1754610633121,-400.0,0.00019178,2]
[377902393,1754610633131,-400.0,0.00019178,2]
[377902394,1754610633140,-474.66,0.00019178,2]
[377902395,1754610633151,-400.0,0.00019178,2]
[377902396,1754610633161,-400.0,0.00019178,2]
[377902397,1754610633171,-400.0,0.00019178,2]
[377902398,1754610633181,-400.0,0.00019178,2]
[377902399,1754610633191,-400.0,0.00019178,2]
[377902400,1754610633201,-400.0,0.00019178,2]
[377902401,1754610633211,-400.0,0.00019178,2]
[377902402,1754610633220,-599.56,0.00019178,2]
[377902403,1754610633230,-876.43,0.00019178,2]
[377902404,1754610633240,-400.0,0.00019178,2]
[377902405,1754610633251,-400.0,0.00019178,2]
[377902406,1754610633260,-400.0,0.00019178,2]
[377902407,1754610633270,-400.0,0.00019178,2]
[377902408,1754610633280,-400.0,0.00019178,2]
[377902409,1754610633290,-1401.66,0.00019178,2]
[377902410,1754610633300,-519.74,0.00019178,2]
[377902411,1754610633309,-431.58,0.00019178,2]
[377902412,1754610633319,-882.97,0.00019178,2]
[377902413,1754610633329,-596.07,0.00019178,2]
[377902414,1754610633339,-400.0,0.00019178,2]
[377902415,1754610633350,-400.0,0.00019178,2]
[377902416,1754610633360,-479.9,0.00019178,2]
[377902417,1754610633370,-400.0,0.00019178,2]
[377902418,1754610633380,-1076.06,0.00019178,2]
[377902419,1754610633390,-400.0,0.00019178,2]
[377902420,1754610633400,-400.0,0.00019178,2]
[377902421,1754610633413,-587.72,0.00019178,2]
[377902422,1754610633423,-400.0,0.00019178,2]
[377902423,1754610633432,-400.0,0.00019178,2]
[377902424,1754610633442,-400.0,0.00019178,2]
[377902425,1754610633452,-400.0,0.00019178,2]
[377902426,1754610633462,-975.58,0.00019178,2]
[377902427,1754610633472,-400.0,0.00019178,2]
[377902428,1754610633482,-740.57,0.00019178,2]
[377902429,1754610633491,-1253.36,0.00019178,2]
[377902430,1754610633501,-414.08,0.00019178,2]
[377902431,1754610633511,-689.96519712,0.00019178,2]
[377902432,1754610633529,-289.58480288,0.00019178,2]
[377902433,1754610633539,-782.52,0.00019178,2]
[377902434,1754610633548,-933.55,0.00019178,2]
[377902435,1754610633558,-1178.39,0.00019178,2]
[377902436,1754610633567,-400.0,0.00019178,2]
[377902437,1754610633577,-1046.04,0.00019178,2]
[377902438,1754610633587,-400.0,0.00019178,2]
[377902439,1754610633598,-584.48,0.00019178,2]
[377902440,1754610633607,-400.0,0.00019178,2]
[377902441,1754610633617,-400.0,0.00019178,2]
[377902442,1754610633627,-877.33,0.00019178,2]
[377902443,1754610633637,-598.8,0.00019178,2]
[377902444,1754610633647,-400.0,0.00019178,2]
[377902445,1754610633657,-449.62,0.00019178,2]
[377902446,1754610633666,-400.0,0.00019178,2]
[377902447,1754610633676,-400.0,0.00019178,2]
[377902448,1754610633685,-587.82,0.00019178,2]
[377902449,1754610633695,-400.0,0.00019178,2]
[377902450,1754610633704,-400.0,0.00019178,2]
[377902451,1754610633714,-400.0,0.00019178,2]
[377902452,1754610633724,-400.0,0.00019178,2]
[377902453,1754610633733,-400.0,0.00019178,2]
[377902454,1754610633743,-967.44,0.00019178,2]
[377902455,1754610633753,-855.47,0.00019178,2]
[377902456,1754610633763,-1000.0,0.00019178,2]
[377902457,1754610633772,-1055.37,0.00019178,2]
[377902458,1754610633782,-1349.64087141,0.00019178,2]
[377902459,1754610633875,-89.97912859,0.00019178,2]
[377902460,1754610633885,-400.0,0.00019178,2]
[377902461,1754610633895,-584.31,0.00019178,2]
[377902462,1754610633905,-400.0,0.00019178,2]
[377902463,1754610633914,-500.0,0.00019178,2]
[377902464,1754610633924,-500.0,0.00019178,2]
[377902465,1754610633934,-500.0,0.00019178,2]
[377902466,1754610633944,-500.0,0.00019178,2]
[377902467,1754610633955,-400.0,0.00019178,2]
[377902468,1754610633964,-500.0,0.00019178,2]
[377902469,1754610633974,-778.95,0.00019178,2]
[377902470,1754610633985,-500.0,0.00019178,2]
[377902471,1754610633996,-500.0,0.00019178,2]
[377902472,1754610634007,-500.0,0.00019178,2]
[377902473,1754610634017,-1516.83,0.00019178,2]
[377902474,1754610634028,-417.22,0.00019178,2]
[377902475,1754610634038,-677.42,0.00019178,2]
[377902476,1754610634048,-535.36,0.00019178,2]
[377902477,1754610634059,-140.77574682,0.00019178,2]
[377902478,1754610634082,-259.22425318,0.00019178,2]
[377902479,1754610634093,-1132.85,0.00019178,2]
[377902480,1754610634102,-601.77984698,0.00019178,2]
[377902481,1754610634118,-270.93015302,0.00019178,2]
[377902482,1754610634127,-400.0,0.00019178,2]
[377902483,1754610634137,-400.0,0.00019178,2]
[377902484,1754610634146,-400.0,0.00019178,2]
[377902485,1754610634156,-400.0,0.00019178,2]
[377902486,1754610634166,-400.0,0.00019178,2]
[377902487,1754610634176,-1255.81,0.00019178,2]
[377902488,1754610634186,-400.0,0.00019178,2]
[377902489,1754610634196,-814.03,0.00019178,2]
[377902490,1754610634205,-688.06,0.00019178,2]
[377902491,1754610634215,-400.0,0.00019178,2]
[377902492,1754610634224,-944.75,0.00019178,2]
[377902493,1754610634234,-400.0,0.00019178,2]
[377902494,1754610634243,-1049.37,0.00019178,2]
[377902495,1754610634252,-400.0,0.00019178,2]
[377902496,1754610634262,-400.0,0.00019178,2]
[377902497,1754610634272,-400.0,0.00019178,2]
[377902498,1754610634282,-400.0,0.00019178,2]
[377902499,1754610634292,-643.83,0.00019178,2]
[377902500,1754610634301,-400.0,0.00019178,2]
[377902501,1754610634311,-400.0,0.00019178,2]
[377902502,1754610634320,-1001.93,0.00019178,2]
[377902503,1754610634330,-400.0,0.00019178,2]
[377902504,1754610634339,-496.14,0.00019178,2]
[377902505,1754610634349,-400.0,0.00019178,2]
[377902506,1754610634359,-400.0,0.00019178,2]
[377902507,1754610634369,-400.0,0.00019178,2]
[377902508,1754610634384,-400.0,0.00019178,2]
[377902509,1754610634404,-881.29,0.00019178,2]
[377902510,1754610634415,-54.58744252,0.00019178,2]
[377902511,1754610634430,-971.90255748,0.00019178,2]
[377902512,1754610634442,-534.31,0.00019178,2]
[377902513,1754610634451,-423.52,0.00019178,2]
[377902514,1754610634461,-400.0,0.00019178,2]
[377902515,1754610634471,-522.86,0.00019178,2]
[377902516,1754610634481,-1834.9,0.00019178,2]
[377902517,1754610634490,-151.0,0.00019178,2]
[377902518,1754610634499,-695.29,0.00019178,2]
[377902519,1754610634509,-400.0,0.00019178,2]
[377902520,1754610634519,-400.0,0.00019178,2]
[377902521,1754610634529,-1095.33,0.00019178,2]
[377902522,1754610634539,-257.521686,0.00019178,2]
[377902523,1754610634548,-257.521686,0.00019178,2]
[377902524,1754610634558,-693.64,0.00019178,2]
[377902525,1754610634567,-767.39,0.00019178,2]
[377902526,1754610634576,-400.0,0.00019178,2]
[377902527,1754610634586,-400.0,0.00019178,2]
[377902528,1754610634596,-787.41,0.00019178,2]
[377902529,1754610634605,-1203.7,0.00019178,2]
[377902530,1754610634615,-400.0,0.00019178,2]
[377902531,1754610634624,-400.0,0.00019178,2]
[377902532,1754610634634,-427.31,0.00019178,2]
[377902533,1754610634646,-400.0,0.00019178,2]
[377902534,1754610634655,-1316.52,0.00019178,2]
[377902535,1754610634665,-400.0,0.00019178,2]